fUST/lending_fUST_20250925
["ID","MTS","AMOUNT","RATE_DAILY","PERIOD"]
[387478147,1758741044542,-240.36,0.000267,2]
[387478149,1758741044551,-666.08,0.00027123,6]
[387478151,1758741044561,-150.0,0.00027397,5]
[387478153,1758741044570,-151.0,0.000274,14]
[387478155,1758741044579,-1742.91081947,0.00027403,7]
[387478157,1758741044588,-318.122443,0.00027429,2]
[387478159,1758741044597,-250.0,0.00027945,5]
[387478161,1758741044607,-252.29352872,0.00028001,2]
[387478163,1758741044617,-272.59,0.00028219,14]
[387478165,1758741044627,-379.129,0.00028249,2]
[387478167,1758741044637,-151.0,0.000284,11]
[387478169,1758741044646,-1742.91081947,0.00028475,9]
[387478171,1758741044656,-350.0,0.00028493,5]
[387478172,1758741044666,-367.05189,0.00028556,2]
[387478175,1758741044676,-500.0,0.00028618,7]
[387478177,1758741044686,-150.0,0.00028664,2]
[387478179,1758741044695,-272.59,0.00028904,15]
[387478181,1758741044705,-605.21330744,0.00029,22]
[387478183,1758741044714,-1210.42661488,0.00029,22]
[387478185,1758741044723,-666.08,0.00029041,8]
[387478187,1758741044733,-450.0,0.00029041,5]
[387478189,1758741044743,-200.0,0.0002919,3]
[387478191,1758741044752,-150.0,0.000292,2]
[387478193,1758741044762,-3958.46,0.000292,2]
[387478194,1758741044771,-500.0,0.000293,2]
[387478196,1758741044780,-500.0,0.000293,2]
[387478198,1758741044789,-500.0,0.000293,2]
[387478200,1758741044799,-2000.0,0.00029319,120]
[387478203,1758741044809,-2000.0,0.00029319,120]
[387478205,1758741044819,-1794.939,0.00029319,120]
[387478207,1758741044828,-2000.0,0.00029321,30]
[387478209,1758741044837,-2000.0,0.00029321,30]
[387478210,1758741044847,-1080.8,0.00029321,30]
[387478213,1758741044857,-150.0,0.00029321,2]
[387478215,1758741044866,-500.0,0.00029321,10]
[387478217,1758741044876,-500.0,0.00029321,10]
[387478218,1758741044885,-500.0,0.00029321,10]
[387478219,1758741044894,-500.0,0.00029321,10]
[387478220,1758741044903,-500.0,0.00029321,10]
[387478221,1758741044914,-250.0,0.00029321,10]
[387478222,1758741044923,-250.0,0.00029321,10]
[387478223,1758741044932,-250.0,0.00029321,10]
[387478224,1758741044941,-346.175394,0.00029321,10]
[387478225,1758741044950,-3173.41029582,0.0002934,2]
[387478226,1758741044960,-222.1467698,0.0002934,2]
[387478227,1758741044969,-307.1761053,0.00029346,30]
[387478229,1758741044979,-68293.8242061,0.0002936,2]
[387478231,1758741044989,-532.2324375,0.000294,30]
[387478233,1758741044999,-166.27881145,0.0002944,2]
[387478235,1758741045009,-1047734.69864549,0.0002944,2]
[387478253,1758741045167,-43614.72713765,0.0002944,2]
[387478255,1758741045179,-4342.956325,0.0002944,2]
[387478257,1758741045191,-15695.02422333,0.0002944,2]
[387478273,1758741045332,-480.0,0.00019178,2]
[387478275,1758741045342,-480.0,0.00019178,2]
[387478277,1758741045351,-480.0,0.00019452,2]
[387478279,1758741045360,-480.0,0.00019726,2]
[387478281,1758741045370,-1804.15376204,0.0002944,2]
[387478283,1758741045384,-1595.8,0.0002944,2]
[387478285,1758741045395,-1700.0,0.0002944,2]
[387478288,1758741045406,-18774.88614663,0.0002944,2]
[387478290,1758741045418,-357.46,0.0002944,2]
[387478292,1758741045429,-13079.52622857,0.0002944,2]
[387478294,1758741045440,-2318.01112595,0.0002944,2]
[387478309,1758741045576,-417.02000001,0.00019178,2]
[387478311,1758741045587,-62.97999999,0.00019178,2]
[387478313,1758741045597,-480.0,0.00019178,2]
[387478315,1758741045606,-480.0,0.00019178,2]
[387478317,1758741045615,-480.18664145,0.00019452,2]
[387478319,1758741045625,-31810.00834753,0.0002944,2]
[387478321,1758741045635,-11277.0,0.0002944,2]
[387478324,1758741045647,-30818.25522961,0.0002944,2]
[387478463,1758741046971,-480.0,0.00019178,2]
[387478465,1758741046981,-32691.10134636,0.0002944,2]
[387478467,1758741046993,-6359.32659566,0.0002944,2]
[387478472,1758741047025,-3765.34240349,0.0002944,2]
[387482786,1758741143306,154.0,0.00024,120]
[387482787,1758741144709,154.0,0.000265,120]
[387482803,1758741191923,9761.4299324,0.00018471,2]
[387482816,1758741275107,240.36,0.00019,2]
[387482817,1758741333244,500.0,0.000185,2]
[387482818,1758741350972,500.0,0.000185,2]
[387482819,1758741365530,522.59623485,0.00019173,2]
[387482820,1758741399420,2000.0,0.00019177,20]
[387482821,1758741400082,2000.0,0.00019177,20]
[387482822,1758741400470,1794.939,0.00019177,20]
[387482823,1758741456769,441.51367533,0.00019078,2]
[387482824,1758741516976,500.0,0.00019176,2]
[387482825,1758741517006,194.93178628,0.00019176,2]
[387482826,1758741517036,164.01286445,0.00019176,2]
[387482827,1758741517067,500.0,0.00019176,2]
[387482828,1758741517101,500.0,0.00019176,2]
[387482829,1758741517135,500.0,0.00019176,2]
[387482830,1758741517166,500.0,0.00019176,2]
[387482831,1758741517203,500.0,0.00019176,2]
[387482832,1758741517238,500.0,0.00019176,2]
[387482833,1758741517268,500.0,0.00019176,2]
[387482834,1758741517302,500.0,0.00019176,2]
[387482835,1758741517333,635.86226404,0.00019176,2]
[387482836,1758741517367,613.82509548,0.00019176,2]
[387482837,1758741517402,500.0,0.00019176,2]
[387482838,1758741517438,500.0,0.00019176,2]
[387482839,1758741517475,500.0,0.00019176,2]
[387482840,1758741517515,500.0,0.00019176,2]
[387482841,1758741517557,500.0,0.00019176,2]
[387482842,1758741517691,500.0,0.00019176,2]
[387482843,1758741517729,500.0,0.00019176,2]
[387482844,1758741517765,500.0,0.00019176,2]
[387482845,1758741517802,500.0,0.00019176,2]
[387482846,1758741596439,159.061221,0.00018286,2]
[387482848,1758741692740,-500.0,0.00019176,2]
[387482849,1758741692776,-233.78751866,0.00019176,2]
[387482850,1758741692811,-500.0,0.00019176,2]
[387482851,1758741692846,-500.0,0.00019176,2]
[387482852,1758741692881,-338.32968985,0.00019176,2]
[387482853,1758741717705,386.32446587,0.00019078,2]
[387482854,1758741722296,300.0,0.00019175,2]
[387482855,1758741793828,185.878852,0.00018286,2]
[387482856,1758741798864,490.98,0.00019168,3]
[387482874,1758741997130,-167.2909668,0.00019176,2]
[387482882,1758742075665,580.99603304,0.00019077,2]
[387482890,1758742127441,3320.0,0.00015,5]
[387482936,1758742231855,-231.05,0.00019168,3]
[387482938,1758742231866,-693.17,0.00019168,3]
[387482940,1758742231876,-300.0,0.00019175,2]
[387482942,1758742231885,-1200.0,0.00019175,2]
[387482945,1758742231895,-300.0,0.00019175,2]
[387482948,1758742231904,-500.0,0.00019176,2]
[387482951,1758742231913,-500.0,0.00019176,2]
[387482953,1758742231923,-234.86945505,0.00019176,2]
[387482955,1758742231933,-236.6937292,0.00019176,2]
[387482956,1758742231942,-500.0,0.00019176,2]
[387482957,1758742231951,-500.0,0.00019176,2]
[387482958,1758742231960,-500.0,0.00019176,2]
[387482959,1758742231969,-534.7099707,0.00019176,2]
[387482960,1758742231978,-500.0,0.00019176,2]
[387482962,1758742231988,-500.0,0.00019176,2]
[387482964,1758742231997,-305.06821372,0.00019176,2]
[387482965,1758742232007,-1200.0,0.00019176,2]
[387482967,1758742232016,-15866.50132449,0.00019177,2]
[387483170,1758742237796,-1011.68032778,0.00019177,2]
[387483171,1758742237857,-33121.81834773,0.00019177,2]
[387483172,1758742237867,-155.0,0.00019177,2]
[387483173,1758742237876,-339.26663906,0.00019177,2]
[387483174,1758742237886,-797.14955523,0.00019177,2]
[387483175,1758742237896,-543.1720481,0.00019177,2]
[387483176,1758742237906,-797.14955523,0.00019177,2]
[387483177,1758742237915,-797.14955523,0.00019177,2]
[387483178,1758742237925,-797.14955523,0.00019177,2]
[387483179,1758742237935,-797.14955523,0.00019177,2]
[387483180,1758742237944,-797.14955523,0.00019177,2]
[387483181,1758742237953,-797.14955523,0.00019177,2]
[387483182,1758742237962,-797.14955523,0.00019177,2]
[387483183,1758742237972,-797.14955523,0.00019177,2]
[387483184,1758742237981,-797.14955523,0.00019177,2]
[387483185,1758742237991,-797.14955523,0.00019177,2]
[387483186,1758742238000,-797.14955523,0.00019177,2]
[387483187,1758742238010,-797.14955523,0.00019177,2]
[387483188,1758742238020,-797.14955523,0.00019177,2]
[387483189,1758742238030,-797.14955523,0.00019177,2]
[387483190,1758742238040,-797.14955523,0.00019177,2]
[387483191,1758742238049,-797.14955523,0.00019177,2]
[387483192,1758742238059,-817.07829412,0.00019177,2]
[387483193,1758742238070,-817.07829412,0.00019177,2]
[387483194,1758742238083,-817.07829412,0.00019177,2]
[387483195,1758742238092,-817.07829412,0.00019177,2]
[387483196,1758742238121,-817.07829412,0.00019177,2]
[387483197,1758742238130,-817.07829412,0.00019177,2]
[387483198,1758742238140,-817.07829412,0.00019177,2]
[387483199,1758742238150,-817.07829412,0.00019177,2]
[387483200,1758742238159,-817.07829412,0.00019177,2]
[387483201,1758742238168,-1208.71237301,0.00019177,2]
[387483202,1758742238178,-122.92662404,0.00019178,2]
[387483203,1758742238197,-357.07337596,0.00019178,2]
[387483204,1758742238207,-480.0,0.00019178,2]
[387483205,1758742238216,-480.0,0.00019178,2]
[387483206,1758742238225,-311.20041475,0.00019178,2]
[387483207,1758742238235,-480.0,0.00019178,2]
[387483208,1758742238244,-480.0,0.00019178,2]
[387483209,1758742238254,-480.0,0.00019178,2]
[387483210,1758742238263,-480.0,0.00019178,2]
[387483211,1758742238273,-480.0,0.00019178,2]
[387483212,1758742238282,-480.0,0.00019178,2]
[387483213,1758742238291,-466.84674437,0.00019178,2]
[387483214,1758742238301,-480.0,0.00019178,2]
[387483215,1758742238310,-480.0,0.00019178,2]
[387483216,1758742238319,-480.0,0.00019178,2]
[387483217,1758742238328,-480.0,0.00019178,2]
[387483218,1758742238337,-480.0,0.00019178,2]
[387483219,1758742238346,-480.0,0.00019178,2]
[387483220,1758742238356,-480.0,0.00019178,2]
[387483221,1758742238366,-241.89476825,0.00019178,2]
[387483222,1758742238375,-470.75255859,0.00019178,2]
[387483223,1758742238384,-157.64,0.00019178,2]
[387483224,1758742238393,-374.47906482,0.00019178,2]
[387483225,1758742238403,-480.0,0.00019178,2]
[387483226,1758742238412,-480.0,0.00019178,2]
[387483227,1758742238422,-480.0,0.00019178,2]
[387483228,1758742238431,-488.50358639,0.00019178,2]
[387483229,1758742238441,-471.54255488,0.00019178,2]
[387483230,1758742238450,-488.02138071,0.00019178,2]
[387483231,1758742238460,-217.50100791,0.00019178,2]
[387483232,1758742238470,-480.0,0.00019178,2]
[387483233,1758742238479,-480.0,0.00019178,2]
[387483234,1758742238489,-447.71090213,0.00019178,2]
[387483235,1758742238498,-480.0,0.00019178,2]
[387483236,1758742238509,-480.0,0.00019178,2]
[387483237,1758742238519,-460.17723802,0.00019178,2]
[387483238,1758742238528,-419.49905014,0.00019178,2]
[387483239,1758742238538,-480.0,0.00019178,2]
[387483240,1758742238547,-480.0,0.00019178,2]
[387483241,1758742238557,-468.46684287,0.00019178,2]
[387483242,1758742238566,-481.2198445,0.00019178,2]
[387483243,1758742238576,-480.0,0.00019178,2]
[387483244,1758742238585,-480.0,0.00019178,2]
[387483245,1758742238594,-480.0,0.00019178,2]
[387483246,1758742238603,-480.0,0.00019178,2]
[387483247,1758742238613,-467.46242403,0.00019178,2]
[387483248,1758742238624,-480.0,0.00019178,2]
[387483249,1758742238634,-603.97721234,0.00019178,2]
[387483250,1758742238643,-480.0,0.00019178,2]
[387483251,1758742238653,-480.0,0.00019178,2]
[387483252,1758742238663,-480.0,0.00019178,2]
[387483253,1758742238673,-480.0,0.00019178,2]
[387483254,1758742238683,-480.0,0.00019178,2]
[387483255,1758742238692,-480.0,0.00019178,2]
[387483256,1758742238702,-480.0,0.00019178,2]
[387483257,1758742238712,-284.38662389,0.00019178,2]
[387483258,1758742238721,-480.0,0.00019178,2]
[387483259,1758742238731,-480.0,0.00019178,2]
[387483260,1758742238740,-485.52348624,0.00019178,2]
[387483261,1758742238749,-480.0,0.00019178,2]
[387483262,1758742238759,-483.33235032,0.00019178,2]
[387483263,1758742238768,-484.17814416,0.00019178,2]
[387483264,1758742238777,-480.0,0.00019178,2]
[387483265,1758742238787,-480.0,0.00019178,2]
[387483266,1758742238796,-480.0,0.00019178,2]
[387483267,1758742238805,-480.0,0.00019178,2]
[387483268,1758742238815,-570.80519111,0.00019178,2]
[387483269,1758742238825,-480.0,0.00019178,2]
[387483270,1758742238834,-480.0,0.00019178,2]
[387483271,1758742238844,-480.0,0.00019178,2]
[387483272,1758742238853,-523.00843586,0.00019178,2]
[387483273,1758742238863,-480.0,0.00019178,2]
[387483274,1758742238873,-480.0,0.00019178,2]
[387483275,1758742238882,-480.0,0.00019178,2]
[387483276,1758742238892,-480.0,0.00019178,2]
[387483277,1758742238901,-480.0,0.00019178,2]
[387483278,1758742238911,-480.0,0.00019178,2]
[387483279,1758742238920,-480.0,0.00019178,2]
[387483280,1758742238929,-480.0,0.00019178,2]
[387483281,1758742238939,-480.0,0.00019178,2]
[387483282,1758742238948,-480.0,0.00019178,2]
[387483283,1758742238958,-480.0,0.00019178,2]
[387483284,1758742238967,-500.0,0.00019178,2]
[387483285,1758742238976,-480.0,0.00019178,2]
[387483286,1758742238986,-480.0,0.00019178,2]
[387483287,1758742238996,-480.0,0.00019178,2]
[387483288,1758742239006,-480.0,0.00019178,2]
[387483289,1758742239015,-480.0,0.00019178,2]
[387483290,1758742239025,-480.0,0.00019178,2]
[387483291,1758742239035,-480.0,0.00019178,2]
[387483292,1758742239045,-480.0,0.00019178,2]
[387483293,1758742239055,-480.0,0.00019178,2]
[387483294,1758742239064,-480.0,0.00019178,2]
[387483295,1758742239074,-480.0,0.00019178,2]
[387483296,1758742239085,-480.0,0.00019178,2]
[387483297,1758742239098,-480.0,0.00019178,2]
[387483298,1758742239108,-480.0,0.00019178,2]
[387483299,1758742239118,-480.0,0.00019178,2]
[387483300,1758742239127,-480.0,0.00019178,2]
[387483301,1758742239235,-480.0,0.00019178,2]
[387483302,1758742239244,-481.55932613,0.00019178,2]
[387483303,1758742239254,-480.0,0.00019178,2]
[387483304,1758742239264,-452.31581079,0.00019178,2]
[387483305,1758742239274,-480.0,0.00019178,2]
[387483306,1758742239284,-480.0,0.00019178,2]
[387483307,1758742239294,-480.0,0.00019178,2]
[387483308,1758742239304,-480.0,0.00019178,2]
[387483309,1758742239314,-480.0,0.00019178,2]
[387483310,1758742239323,-480.0,0.00019178,2]
[387483311,1758742239333,-480.0,0.00019178,2]
[387483312,1758742239343,-500.0,0.00019178,2]
[387483313,1758742239354,-500.0,0.00019178,2]
[387483314,1758742239364,-374.51784135,0.00019178,2]
[387483315,1758742239373,-480.0,0.00019178,2]
[387483316,1758742239383,-480.0,0.00019178,2]
[387483317,1758742239393,-480.0,0.00019178,2]
[387483318,1758742239402,-500.0,0.00019178,2]
[387483319,1758742239412,-500.0,0.00019178,2]
[387483320,1758742239422,-500.0,0.00019178,2]
[387483321,1758742239432,-500.0,0.00019178,2]
[387483322,1758742239441,-500.0,0.00019178,2]
[387483323,1758742239451,-480.0,0.00019178,2]
[387483324,1758742239461,-480.0,0.00019178,2]
[387483325,1758742239471,-480.0,0.00019178,2]
[387483326,1758742239481,-480.0,0.00019178,2]
[387483328,1758742239490,-428.82238237,0.00019178,2]
[387483330,1758742239500,-480.0,0.00019178,2]
[387483331,1758742239509,-480.0,0.00019178,2]
[387483333,1758742239519,-480.0,0.00019178,2]
[387483334,1758742239529,-480.0,0.00019178,2]
[387483335,1758742239539,-480.0,0.00019178,2]
[387483336,1758742239548,-480.0,0.00019178,2]
[387483337,1758742239558,-480.0,0.00019178,2]
[387483338,1758742239567,-480.0,0.00019178,2]
[387483339,1758742239576,-480.0,0.00019178,2]
[387483340,1758742239587,-480.0,0.00019178,2]
[387483341,1758742239597,-480.0,0.00019178,2]
[387483342,1758742239606,-480.0,0.00019178,2]
[387483343,1758742239616,-480.0,0.00019178,2]
[387483344,1758742239626,-480.0,0.00019178,2]
[387483345,1758742239637,-480.0,0.00019178,2]
[387483346,1758742239646,-480.0,0.00019178,2]
[387483348,1758742239656,-480.0,0.00019178,2]
[387483350,1758742239666,-480.0,0.00019178,2]
[387483352,1758742239676,-480.0,0.00019178,2]
[387483355,1758742239686,-487.09235465,0.00019178,2]
[387483357,1758742239695,-480.0,0.00019178,2]
[387483359,1758742239705,-480.0,0.00019178,2]
[387483361,1758742239714,-480.0,0.00019178,2]
[387483363,1758742239723,-163.59,0.00019178,2]
[387483364,1758742239732,-321.683899,0.00019178,2]
[387483366,1758742239742,-480.0,0.00019178,2]
[387483369,1758742239752,-480.0,0.00019178,2]
[387483371,1758742239761,-480.0,0.00019178,2]
[387483373,1758742239771,-480.0,0.00019178,2]
[387483375,1758742239781,-480.0,0.00019178,2]
[387483377,1758742239791,-480.0,0.00019178,2]
[387483379,1758742239800,-480.0,0.00019178,2]
[387483381,1758742239810,-480.0,0.00019178,2]
[387483383,1758742239819,-480.0,0.00019178,2]
[387483385,1758742239829,-480.0,0.00019178,2]
[387483387,1758742239838,-480.0,0.00019178,2]
[387483388,1758742239848,-480.0,0.00019178,2]
[387483390,1758742239857,-480.0,0.00019178,2]
[387483393,1758742239868,-480.0,0.00019178,2]
[387483395,1758742239877,-480.0,0.00019178,2]
[387483397,1758742239887,-480.0,0.00019178,2]
[387483399,1758742239896,-531.68032778,0.00019178,2]
[387483401,1758742239905,-480.0,0.00019178,2]
[387483403,1758742239915,-480.0,0.00019178,2]
[387483405,1758742239924,-480.0,0.00019178,2]
[387483407,1758742239934,-217.12332187,0.00019178,2]
[387483408,1758742239943,-480.0,0.00019178,2]
[387483409,1758742239952,-480.0,0.00019178,2]
[387483411,1758742239962,-480.0,0.00019178,2]
[387483413,1758742239972,-480.0,0.00019178,2]
[387483415,1758742239981,-480.0,0.00019178,2]
[387483416,1758742239991,-480.0,0.00019178,2]
[387483417,1758742240000,-480.0,0.00019178,2]
[387483418,1758742240010,-528.98,0.00019178,2]
[387483419,1758742240019,-625.42,0.00019178,2]
[387483420,1758742240029,-480.0,0.00019178,2]
[387483421,1758742240038,-480.0,0.00019178,2]
[387483422,1758742240048,-480.0,0.00019178,2]
[387483423,1758742240058,-480.0,0.00019178,2]
[387483424,1758742240069,-480.0,0.00019178,2]
[387483425,1758742240083,-480.0,0.00019178,2]
[387483426,1758742240092,-480.0,0.00019178,2]
[387483428,1758742240102,-480.0,0.00019178,2]
[387483430,1758742240111,-480.0,0.00019178,2]
[387483432,1758742240120,-267.43532276,0.00019178,2]
[387483434,1758742240129,-480.0,0.00019178,2]
[387483435,1758742240139,-480.0,0.00019178,2]
[387483436,1758742240148,-480.0,0.00019178,2]
[387483437,1758742240158,-480.0,0.00019178,2]
[387483438,1758742240167,-480.0,0.00019178,2]
[387483439,1758742240176,-481.04215554,0.00019178,2]
[387483440,1758742240186,-480.0,0.00019178,2]
[387483441,1758742240195,-266.95,0.00019178,2]
[387483442,1758742240204,-448.45846262,0.00019178,2]
[387483443,1758742240213,-480.0,0.00019178,2]
[387483444,1758742240222,-480.0,0.00019178,2]
[387483445,1758742240231,-480.0,0.00019178,2]
[387483446,1758742240240,-480.0,0.00019178,2]
[387483447,1758742240249,-480.0,0.00019178,2]
[387483448,1758742240259,-480.0,0.00019178,2]
[387483449,1758742240269,-480.0,0.00019178,2]
[387483450,1758742240278,-480.0,0.00019178,2]
[387483451,1758742240287,-480.0,0.00019178,2]
[387483452,1758742240296,-488.9948695,0.00019178,2]
[387483453,1758742240305,-480.0,0.00019178,2]
[387483455,1758742240315,-480.0,0.00019178,2]
[387483456,1758742240324,-480.0,0.00019178,2]
[387483458,1758742240333,-480.0,0.00019178,2]
[387483460,1758742240342,-480.0,0.00019178,2]
[387483462,1758742240351,-480.0,0.00019178,2]
[387483464,1758742240361,-480.0,0.00019178,2]
[387483466,1758742240370,-1000.0,0.00019178,2]
[387483468,1758742240379,-480.0,0.00019178,2]
[387483470,1758742240388,-480.0,0.00019178,2]
[387483472,1758742240397,-480.0,0.00019178,2]
[387483474,1758742240406,-960.49,0.00019178,2]
[387483476,1758742240415,-480.0,0.00019178,2]
[387483478,1758742240426,-480.0,0.00019178,2]
[387483480,1758742240435,-480.0,0.00019178,2]
[387483482,1758742240444,-480.0,0.00019178,2]
[387483484,1758742240453,-480.0,0.00019178,2]
[387483486,1758742240462,-449.91638099,0.00019178,2]
[387483488,1758742240471,-480.0,0.00019178,2]
[387483490,1758742240480,-480.0,0.00019178,2]
[387483492,1758742240489,-480.0,0.00019178,2]
[387483494,1758742240499,-480.0,0.00019178,2]
[387483496,1758742240508,-480.0,0.00019178,2]
[387483498,1758742240517,-480.0,0.00019178,2]
[387483500,1758742240528,-480.0,0.00019178,2]
[387483502,1758742240537,-480.0,0.00019178,2]
[387483504,1758742240546,-306.31326237,0.00019178,2]
[387483506,1758742240556,-480.0,0.00019178,2]
[387483508,1758742240566,-480.0,0.00019178,2]
[387483510,1758742240576,-240.34,0.00019178,2]
[387483512,1758742240585,-480.0,0.00019178,2]
[387483514,1758742240594,-600.7520358,0.00019178,2]
[387483516,1758742240604,-484.44,0.00019178,2]
[387483518,1758742240614,-480.0,0.00019178,2]
[387483520,1758742240624,-480.0,0.00019178,2]
[387483522,1758742240633,-480.0,0.00019178,2]
[387483524,1758742240644,-480.0,0.00019178,2]
[387483526,1758742240654,-480.0,0.00019178,2]
[387483528,1758742240663,-480.0,0.00019178,2]
[387483530,1758742240673,-480.0,0.00019178,2]
[387483532,1758742240683,-480.0,0.00019178,2]
[387483534,1758742240692,-627.53196498,0.00019178,2]
[387483536,1758742240701,-480.0,0.00019178,2]
[387483538,1758742240711,-480.0,0.00019178,2]
[387483540,1758742240719,-480.0,0.00019178,2]
[387483542,1758742240729,-480.0,0.00019178,2]
[387483544,1758742240738,-459.95805596,0.00019178,2]
[387483546,1758742240747,-480.0,0.00019178,2]
[387483548,1758742240756,-500.0,0.00019178,2]
[387483550,1758742240766,-480.0,0.00019178,2]
[387483552,1758742240775,-480.0,0.00019178,2]
[387483554,1758742240785,-480.53523737,0.00019178,2]
[387483556,1758742240794,-480.0,0.00019178,2]
[387483558,1758742240803,-480.58224186,0.00019178,2]
[387483560,1758742240813,-500.0,0.00019178,2]
[387483562,1758742240822,-480.0,0.00019178,2]
[387483564,1758742240831,-500.0,0.00019178,2]
[387483566,1758742240841,-4588.29841861,0.00019273,2]
[387483568,1758742240851,-500.0,0.0001935,2]
[387483570,1758742240860,-500.0,0.0001935,2]
[387483572,1758742240870,-500.0,0.00019351,2]
[387483574,1758742240879,-500.0,0.00019351,2]
[387483576,1758742240892,-500.0,0.00019351,2]
[387483579,1758742240902,-500.0,0.00019351,2]
[387483581,1758742240922,-500.0,0.00019351,2]
[387483583,1758742240932,-500.0,0.00019351,2]
[387483585,1758742240942,-282.12,0.00019351,2]
[387483588,1758742240952,-370000.0,0.00019352,2]
[387483590,1758742240962,-502.4717029,0.00019373,2]
[387483592,1758742240972,-500.0,0.00019373,2]
[387483594,1758742240983,-500.0,0.00019373,2]
[387483596,1758742240992,-500.0,0.00019373,2]
[387483598,1758742241002,-500.0,0.00019373,2]
[387483600,1758742241011,-564.29743427,0.00019373,2]
[387483602,1758742241021,-501.26796039,0.00019373,2]
[387483604,1758742241031,-500.0,0.00019373,2]
[387483606,1758742241041,-438.2092889,0.00019373,2]
[387483608,1758742241051,-500.0,0.00019373,2]
[387483610,1758742241060,-500.0,0.00019373,2]
[387483612,1758742241070,-268.76506992,0.00019373,2]
[387483614,1758742241084,-500.0,0.00019373,2]
[387483616,1758742241093,-500.0,0.00019373,2]
[387483618,1758742241102,-500.0,0.00019373,2]
[387483620,1758742241111,-503.15772695,0.00019373,2]
[387483622,1758742241122,-500.0,0.00019373,2]
[387483624,1758742241131,-500.0,0.00019373,2]
[387483626,1758742241141,-486.15753045,0.00019452,2]
[387483628,1758742241151,-492.22768065,0.00019452,2]
[387483630,1758742241161,-480.0,0.00019452,2]
[387483632,1758742241170,-480.0,0.00019452,2]
[387483634,1758742241179,-480.0,0.00019452,2]
[387483636,1758742241189,-452.0,0.00019452,2]
[387483638,1758742241198,-480.0,0.00019452,2]
[387483640,1758742241208,-303.54491338,0.00019452,2]
[387483642,1758742241217,-480.0,0.00019452,2]
[387483644,1758742241226,-480.0,0.00019452,2]
[387483646,1758742241235,-480.0,0.00019452,2]
[387483648,1758742241245,-480.0,0.00019452,2]
[387483650,1758742241254,-480.0,0.00019452,2]
[387483652,1758742241263,-537.12080077,0.00019452,2]
[387483654,1758742241273,-453.29,0.00019452,2]
[387483656,1758742241283,-467.27611667,0.00019452,2]
[387483658,1758742241292,-552.7,0.00019452,2]
[387483660,1758742241301,-480.0,0.00019452,2]
[387483662,1758742241311,-480.0,0.00019452,2]
[387483664,1758742241320,-480.0,0.00019452,2]
[387483666,1758742241329,-480.0,0.00019452,2]
[387483668,1758742241338,-480.0,0.00019452,2]
[387483670,1758742241347,-480.0,0.00019452,2]
[387483672,1758742241357,-515.83271719,0.00019452,2]
[387483674,1758742241366,-480.0,0.00019452,2]
[387483676,1758742241375,-626.45,0.00019452,2]
[387483678,1758742241384,-154.85913114,0.00019452,2]
[387483680,1758742241393,-480.0,0.00019452,2]
[387483682,1758742241404,-488.44,0.00019452,2]
[387483684,1758742241413,-480.0,0.00019452,2]
[387483686,1758742241422,-358.72600664,0.00019452,2]
[387483688,1758742241431,-480.0,0.00019452,2]